bitfinex/quotes_BTCUSD_20240827
["timestamp","ask_amount","ask_price","bid_price","bid_amount"]
[1724718053619,0.009053,63104.0,63103.0,1.24053135]
[1724718054020,0.009053,63104.0,63103.0,1.31583135]
[1724718054847,0.084153,63104.0,63103.0,0.76511835]
[1724718055202,0.009053,63104.0,63103.0,0.76511835]
[1724718058995,0.009053,63104.0,63103.0,0.75958801]
[1724718059205,0.043653,63104.0,63103.0,0.50341]
[1724718059413,0.203121,63104.0,63103.0,0.60341]
[1724718059966,0.877495,63104.0,63103.0,0.50341]
[1724718060164,1.66754701,63104.0,63103.0,0.50341]
[1724718060343,1.69054701,63104.0,63103.0,0.014]
[1724718060543,1.110367,63099.0,63098.0,0.000822]
[1724718060776,1.73829137,63099.0,63098.0,0.000822]
[1724718061176,1.73829137,63099.0,63069.0,0.0774]
[1724718061177,0.001,63074.0,63069.0,0.0774]
[1724718061428,0.001,63072.0,63070.0,0.15617801]
[1724718062176,0.001,63071.0,63070.0,0.15617801]
[1724718062379,0.476653,63071.0,63070.0,0.15617801]
[1724718062589,0.476653,63071.0,63048.0,0.003]
[1724718062590,0.001,63055.0,63048.0,0.003]
[1724718062787,0.001,63055.0,63051.0,0.15617801]
[1724718063975,0.001,63052.0,63051.0,0.17017801]
[1724718064220,0.0405,63058.0,63052.0,0.001]
[1724718064391,0.0405,63058.0,63053.0,0.15917801]
[1724718064392,0.001,63058.0,63053.0,0.15917801]
[1724718064608,0.0405,63063.0,63053.0,0.15617801]
[1724718064609,0.001,63059.0,63053.0,0.15617801]
[1724718065130,0.001,63055.0,63053.0,0.15617801]
[1724718065334,0.001,63055.0,63053.0,0.31477301]
[1724718065533,0.001,63059.0,63053.0,0.31477301]
[1724718065751,0.001,63059.0,63054.0,0.158591]
[1724718066061,0.001,63059.0,63053.0,0.15917801]
[1724718066062,0.001,63059.0,63055.0,0.15617801]
[1724718067447,0.001,63059.0,63055.0,0.16617801]
[1724718067613,0.001,63056.0,63055.0,0.16917801]
[1724718068234,0.001,63059.0,63055.0,0.16917801]
[1724718068436,0.47690893,63070.0,63060.0,0.06]
[1724718068701,0.001,63070.0,63063.0,0.158571]
[1724718068849,0.001,63068.0,63064.0,0.15617801]
[1724718069173,0.001,63061.0,63056.0,0.1]
[1724718069328,0.001,63061.0,63057.0,0.15617801]
[1724718069742,0.001,63061.0,63060.0,0.005]
[1724718069920,0.001,63061.0,63060.0,0.15617801]
[1724718070122,0.00080926,63059.0,63058.0,0.1]
[1724718070330,0.00080926,63059.0,63058.0,0.25617801]
[1724718071162,0.317121,63068.0,63058.0,0.25617801]
[1724718071163,0.00080926,63065.0,63060.0,0.158578]
[1724718071389,0.00080926,63067.0,63061.0,0.15617801]
[1724718071959,0.00080926,63066.0,63061.0,0.15617801]
[1724718072192,0.00080926,63067.0,63061.0,0.15617801]
[1724718072671,0.00080926,63062.0,63061.0,0.15617801]
[1724718072875,0.00080926,63059.0,63058.0,0.109]
[1724718073081,0.00080926,63059.0,63058.0,0.15617801]
[1724718073488,0.00080926,63059.0,63058.0,0.25617801]
[1724718074217,0.00180926,63059.0,63058.0,0.26517801]
[1724718075403,0.00180926,63059.0,63058.0,0.27917801]
[1724718076676,0.001,63059.0,63058.0,0.27917801]
[1724718076996,0.001,63059.0,63058.0,0.51876201]
[1724718077201,0.001,63059.0,63058.0,0.83593001]
[1724718077904,0.001,63059.0,63058.0,1.47109001]
[1724718078083,0.001,63059.0,63058.0,1.53972959]
[1724718079492,0.001,63059.0,63058.0,1.9276827]
[1724718080321,0.46876099,63079.0,63070.0,0.317104]
[1724718080522,0.46876099,63079.0,63074.0,0.158542]
[1724718080880,0.02484413,63084.0,63075.0,0.25617801]
[1724718081047,0.02484413,63084.0,63083.0,0.475563]
[1724718081216,0.02484413,63084.0,63083.0,0.37779901]
[1724718081419,0.02484413,63084.0,63083.0,1.09288301]
[1724718081648,0.02484413,63084.0,63083.0,1.19288301]
[1724718081851,0.02484413,63084.0,63083.0,0.40027801]
[1724718082043,0.00080926,63087.0,63083.0,0.25617801]
[1724718082254,0.00080926,63086.0,63084.0,0.15617801]
[1724718082452,0.00080926,63085.0,63084.0,0.15617801]
[1724718083506,0.316999,63092.0,63090.0,0.158502]
[1724718083507,0.00080926,63092.0,63090.0,0.158502]
[1724718083705,0.00080926,63092.0,63091.0,0.15617801]
[1724718084061,0.02564716,63092.0,63091.0,0.15617801]
[1724718085667,0.02564716,63092.0,63091.0,0.16617801]
[1724718085888,0.02564716,63092.0,63091.0,0.17317801]
[1724718086074,0.0248379,63092.0,63091.0,0.33167901]
[1724718086298,0.0248379,63092.0,63091.0,0.43167901]
[1724718086865,0.0248379,63092.0,63091.0,0.27317801]
[1724718087788,0.0248379,63092.0,63091.0,0.43167901]
[1724718088299,0.0248379,63092.0,63091.0,0.82858101]
[1724718088737,0.00080926,63098.0,63093.0,0.158495]
[1724718088844,0.00080926,63097.0,63094.0,0.15617801]
[1724718089051,0.00090421,63099.0,63094.0,0.15617801]
[1724718089052,0.00080926,63096.0,63094.0,0.15617801]
[1724718089357,0.00080926,63097.0,63094.0,0.15617801]
[1724718089982,0.00080926,63097.0,63094.0,0.15817801]
[1724718090187,0.00080926,63097.0,63094.0,0.16317801]
[1724718090384,0.00080926,63095.0,63094.0,0.16317801]
[1724718090651,0.00080926,63095.0,63094.0,0.15817801]
[1724718091995,0.00080926,63095.0,63094.0,0.16017801]
[1724718092150,0.00080926,63095.0,63094.0,0.15617801]
[1724718092549,0.00080926,63095.0,63094.0,0.16617801]
[1724718095681,0.00080926,63095.0,63094.0,0.15617801]
[1724718096084,0.00080926,63095.0,63094.0,0.16617801]
[1724718096488,0.00080926,63095.0,63094.0,0.22477801]
[1724718096690,0.00080926,63095.0,63094.0,0.15617801]
[1724718096887,0.00080926,63095.0,63094.0,0.16417801]
[1724718097887,0.00080926,63095.0,63094.0,0.17017801]
[1724718099905,0.02655,63099.0,63097.0,0.0815]
[1724718100125,0.02655,63099.0,63098.0,0.15617801]
[1724718102051,0.02655,63099.0,63098.0,0.16517801]
[1724718102287,0.185031,63099.0,63098.0,0.009]
[1724718102485,0.501993,63099.0,63098.0,0.017]
[1724718102710,0.501993,63099.0,63098.0,0.008]
[1724718102961,0.501993,63099.0,63098.0,0.014]
[1724718103339,0.501993,63099.0,63098.0,0.006]
[1724718103792,0.501993,63099.0,63098.0,0.01]
[1724718104325,0.501993,63099.0,63098.0,0.004]
[1724718104737,0.501993,63099.0,63098.0,0.006]
[1724718105720,0.522593,63099.0,63098.0,0.006]
[1724718106008,1.473479,63099.0,63098.0,0.006]
[1724718106215,1.513979,63099.0,63098.0,0.006]
[1724718107061,1.197017,63099.0,63098.0,0.002]
[1724718107229,1.197017,63099.0,63098.0,0.003]
[1724718107434,1.197017,63099.0,63098.0,0.001]
[1724718107979,0.880055,63099.0,63098.0,0.001]
[1724718108204,0.185031,63099.0,63098.0,0.001]
[1724718108595,0.501993,63099.0,63098.0,0.002]
[1724718108973,0.818955,63099.0,63098.0,0.001]
[1724718109203,0.158496,63094.0,63090.0,0.00558364]
[1724718109406,0.158491,63096.0,63089.0,0.1447]
[1724718109620,0.00080926,63090.0,63089.0,0.303206]
[1724718109836,0.00080926,63090.0,63089.0,0.1447]
[1724718110069,0.00080926,63090.0,63089.0,0.30087801]
[1724718110458,0.00080926,63090.0,63089.0,0.46138401]
[1724718110601,0.00080926,63090.0,63089.0,0.30287801]
[1724718110789,0.00080926,63090.0,63089.0,0.30087801]
[1724718111647,0.00080926,63090.0,63089.0,0.45938401]
[1724718112001,0.00080926,63090.0,63089.0,0.47938401]
[1724718112423,0.00080926,63090.0,63089.0,0.46838401]
[1724718112739,0.00080926,63090.0,63089.0,0.45938401]
[1724718113127,0.00080926,63090.0,63089.0,0.47038401]
[1724718113805,0.00080926,63090.0,63089.0,0.78739601]
[1724718114015,0.00080926,63090.0,63089.0,0.87639601]
[1724718114141,0.00080926,63090.0,63089.0,0.88639601]
[1724718114560,0.00080926,63090.0,63089.0,0.87639601]
[1724718114999,0.02574074,63099.0,63089.0,0.87639601]
[1724718115000,0.00080926,63091.0,63090.0,0.47551]
[1724718115212,0.00080926,63091.0,63090.0,0.57551]
[1724718115412,0.00080926,63092.0,63091.0,0.158501]
[1724718115726,0.00080926,63092.0,63091.0,0.258501]
[1724718116011,0.00080926,63093.0,63091.0,0.1]
[1724718116271,0.00080926,63093.0,63091.0,0.41467801]
[1724718116913,0.00080926,63094.0,63091.0,0.58618001]
[1724718117112,0.00080926,63092.0,63091.0,0.73168101]
[1724718117315,0.00080926,63093.0,63092.0,0.158498]
[1724718117944,0.00080926,63093.0,63092.0,0.158496]
[1724718118353,0.00080926,63095.0,63094.0,0.158493]
[1724718118527,0.00080926,63095.0,63094.0,0.31467101]
[1724718118730,0.00080926,63092.0,63091.0,0.111]
[1724718118942,0.00080926,63092.0,63091.0,0.26717801]
[1724718119507,0.00080926,63092.0,63091.0,0.42567901]
[1724718119702,0.00080926,63092.0,63091.0,0.26717801]
[1724718119944,0.00080926,63092.0,63091.0,0.25617801]
[1724718120980,0.00080926,63092.0,63091.0,0.26917801]
[1724718121217,0.00080926,63092.0,63091.0,0.28017801]
[1724718121558,0.00080926,63093.0,63091.0,0.43867901]
[1724718122124,0.00080926,63092.0,63091.0,0.43867901]
[1724718122326,0.00080926,63093.0,63091.0,0.28017801]
[1724718122539,0.00080926,63093.0,63092.0,0.77287301]
[1724718123696,0.00080926,63097.0,63096.0,0.158488]
[1724718123898,0.00080926,63097.0,63096.0,0.31466601]
[1724718124686,0.00080926,63098.0,63097.0,0.158486]
[1724718124893,0.00080926,63098.0,63097.0,0.31466401]
[1724718126094,0.00080926,63098.0,63097.0,0.70943601]
[1724718126425,0.00080926,63098.0,63097.0,0.15617801]
[1724718126613,0.00080926,63098.0,63097.0,0.16217801]
[1724718127021,0.00080926,63098.0,63097.0,0.16617801]
[1724718127402,0.00080926,63098.0,63097.0,0.16217801]
[1724718127569,0.00171566,63098.0,63097.0,0.16217801]
[1724718127972,0.00171566,63098.0,63097.0,0.17017801]
[1724718128168,0.00171566,63098.0,63097.0,0.32866401]
[1724718128856,0.0224564,63099.0,63097.0,0.32866401]
[1724718129058,0.04748667,63100.0,63098.0,0.15617801]
[1724718129265,0.07123001,63101.0,63098.0,0.15617801]
[1724718129266,0.04748667,63099.0,63098.0,0.15617801]
[1724718130780,0.04748667,63099.0,63098.0,0.16217801]
[1724718130985,0.04748667,63099.0,63098.0,0.16017801]
[1724718131191,0.04748667,63101.0,63098.0,0.17017801]
[1724718131417,0.04748667,63102.0,63098.0,0.16617801]
[1724718131649,0.04748667,63102.0,63098.0,0.32466101]
[1724718131802,0.04748667,63103.0,63098.0,0.16617801]
[1724718131998,0.04748667,63101.0,63098.0,0.16617801]
[1724718132206,0.04748667,63099.0,63098.0,0.16617801]
[1724718132429,0.04748667,63099.0,63098.0,0.15617801]
[1724718132857,0.04748667,63099.0,63098.0,0.16417801]
[1724718133053,0.04748667,63099.0,63095.0,0.0778]
[1724718133254,0.04751448,63097.0,63095.0,0.23940377]
[1724718133462,0.07127172,63099.0,63095.0,0.23940377]
[1724718133463,0.04751448,63096.0,63095.0,0.23940377]
[1724718133669,0.04751448,63096.0,63091.0,0.258499]
[1724718133670,0.07127172,63097.0,63091.0,0.1]
[1724718133869,0.04751596,63092.0,63091.0,0.15617801]
[1724718134144,0.07127394,63093.0,63091.0,0.15617801]
[1724718134369,0.09503192,63094.0,63087.0,0.1]
[1724718134370,0.08801732,63092.0,63087.0,0.1]
[1724718134591,0.20601987,63088.0,63087.0,0.1]
[1724718134800,0.74419794,63088.0,63085.0,0.00559741]
[1724718135051,0.158513,63086.0,63081.0,0.1658]
[1724718135199,0.04750549,63085.0,63082.0,0.15617801]
[1724718135382,0.32479549,63086.0,63083.0,0.1]
[1724718135578,0.158526,63082.0,63077.0,0.1474]
[1724718135842,0.158526,63082.0,63077.0,0.15617801]
[1724718135843,0.04749151,63078.0,63077.0,0.15617801]
[1724718136066,0.07125875,63078.0,63077.0,0.15617801]
[1724718136244,0.07125875,63078.0,63069.0,0.00567273]
[1724718136245,0.09502374,63079.0,63069.0,0.14759086]
[1724718136477,0.158544,63074.0,63070.0,0.15617801]
[1724718136672,0.158547,63073.0,63070.0,0.15617801]
[1724718136887,0.15855,63072.0,63069.0,0.00019086]
[1724718137119,0.792767,63070.0,63069.0,0.00019086]
[1724718137262,1.54759044,63070.0,63069.0,0.00019086]
[1724718137466,1.48997375,63070.0,63069.0,0.00019086]
[1724718137842,1.63243378,63070.0,63069.0,0.00019086]
[1724718138043,1.8766926,63070.0,63069.0,0.00019086]
[1724718138301,1.65511417,63070.0,63069.0,0.00019086]
[1724718138476,1.67996637,63070.0,63069.0,0.00019086]
[1724718138674,2.06644779,63070.0,63069.0,0.00119086]
[1724718139302,1.53782595,63070.0,63069.0,0.00119086]
[1724718139899,1.53782595,63070.0,63069.0,0.00019086]
[1724718140320,1.53782595,63070.0,63069.0,0.00119086]
[1724718140538,1.53882595,63070.0,63069.0,0.00219086]
[1724718140747,1.65704263,63070.0,63069.0,0.00119086]
[1724718140944,0.0258522,63070.0,63069.0,0.00119086]
[1724718141147,0.0258522,63070.0,63069.0,0.00219086]
[1724718141934,0.0258522,63070.0,63069.0,0.39852487]
[1724718142135,0.0258522,63070.0,63069.0,0.23996887]
[1724718142799,0.0258522,63070.0,63069.0,0.39852487]
[1724718143026,0.0248522,63070.0,63069.0,0.71463787]
[1724718143241,0.0248522,63070.0,63069.0,0.39952487]
[1724718143452,0.0248522,63070.0,63069.0,0.39652487]
[1724718143877,0.0248522,63070.0,63069.0,0.40552487]
[1724718144305,0.0248522,63070.0,63069.0,0.41252487]
[1724718144949,0.0248522,63070.0,63069.0,0.25396887]
[1724718145439,0.0248522,63070.0,63069.0,0.41252487]
[1724718145652,0.0248522,63070.0,63069.0,0.41233401]
[1724718146922,0.0248522,63070.0,63069.0,0.72944701]
[1724718147544,0.0248522,63070.0,63069.0,1.14656001]
[1724718150238,0.0248522,63070.0,63069.0,1.46367301]
[1724718151064,0.47690893,63084.0,63077.0,0.0797]
[1724718151266,0.02484408,63082.0,63078.0,0.0612]
[1724718152689,0.02484408,63082.0,63081.0,0.158526]
[1724718152892,0.02584408,63082.0,63081.0,0.158526]
[1724718153807,0.02484408,63082.0,63081.0,0.63175601]
[1724718153959,0.02584408,63082.0,63081.0,0.63175601]
[1724718154366,0.02584408,63082.0,63081.0,0.95080801]
[1724718154568,0.02584408,63082.0,63081.0,1.03050801]
[1724718159576,0.02584408,63082.0,63081.0,0.15817801]
[1724718159777,0.02584408,63082.0,63081.0,0.002]
[1724718160977,0.18436708,63082.0,63081.0,0.002]
[1724718162337,0.50141408,63082.0,63081.0,0.002]
[1724718162544,0.81846108,63082.0,63081.0,0.002]
[1724718163165,0.158531,63079.0,63078.0,0.000824]
[1724718166850,0.158531,63079.0,63078.0,0.002824]
[1724718168143,0.02484408,63082.0,63078.0,0.002824]
[1724718168336,0.02484408,63082.0,63080.0,0.0646]
[1724718168609,0.02484408,63082.0,63080.0,0.223126]
[1724718168957,0.02484408,63082.0,63080.0,0.0646]
[1724718169134,0.02484408,63082.0,63080.0,0.223128]
[1724718169339,0.02484408,63082.0,63080.0,0.0646]
[1724718169607,0.02584408,63082.0,63080.0,0.0646]
[1724718169811,0.02484408,63082.0,63080.0,0.0646]
[1724718169920,0.02484408,63082.0,63080.0,0.223128]
[1724718170133,0.02584408,63082.0,63080.0,0.223128]
[1724718170363,0.02584408,63082.0,63081.0,0.158526]
[1724718170952,0.02484408,63082.0,63080.0,0.223128]
[1724718171739,0.02484408,63082.0,63081.0,0.158526]
[1724718172061,0.02484408,63082.0,63080.0,0.223128]
[1724718172414,0.02484408,63082.0,63081.0,1.02890801]
[1724718174281,0.02484408,63082.0,63081.0,1.03090801]
[1724718186823,0.02484408,63082.0,63081.0,1.34796001]
[1724718187053,0.02484408,63082.0,63081.0,1.50926001]
[1724718189233,0.02484408,63082.0,63081.0,1.50726001]
[1724718189671,0.02484408,63082.0,63081.0,1.51126001]
[1724718189877,0.02484408,63082.0,63081.0,1.19020801]
[1724718190209,0.02484408,63082.0,63081.0,0.41557801]
[1724718190381,0.52101408,63082.0,63081.0,0.018]
[1724718191193,0.83806108,63082.0,63081.0,0.018]
[1724718191393,0.52101408,63082.0,63081.0,0.018]
[1724718192028,0.52101408,63082.0,63081.0,0.01]
[1724718192232,0.158531,63079.0,63078.0,0.000824]
[1724718192962,0.07120352,63080.0,63078.0,0.000824]
[1724718193171,0.20599896,63080.0,63078.0,0.000824]
[1724718193385,0.158528,63080.0,63078.0,0.000824]
[1724718193813,0.158528,63080.0,63078.0,0.007824]
[1724718194016,0.158528,63080.0,63078.0,0.000824]
[1724718194327,0.04747096,63081.0,63078.0,0.000824]
[1724718194714,0.158529,63080.0,63078.0,0.000824]
[1724718195116,0.158529,63080.0,63078.0,0.005824]
[1724718195344,0.158529,63080.0,63078.0,0.010824]
[1724718195540,0.04747096,63081.0,63078.0,0.005824]
[1724718195740,0.158527,63081.0,63078.0,0.005824]
[1724718196037,0.20600096,63080.0,63078.0,0.009824]
[1724718196236,0.38825652,63081.0,63078.0,0.009824]
[1724718196237,0.20600196,63079.0,63078.0,0.009824]
[1724718196437,0.158531,63079.0,63078.0,0.005824]
[1724718196760,0.158531,63079.0,63078.0,0.003824]
[1724718197175,0.158531,63079.0,63078.0,0.007824]
[1724718197377,0.158531,63079.0,63078.0,0.003824]
[1724718198519,0.04747069,63081.0,63079.0,0.0808]
[1724718198726,0.0960476,63082.0,63080.0,0.15617801]
[1724718198727,0.02484408,63082.0,63080.0,0.15617801]
[1724718198864,0.02484408,63082.0,63081.0,0.158526]
[1724718199068,0.02484408,63082.0,63081.0,0.31470401]
[1724718199708,0.02484408,63082.0,63081.0,0.15617801]
[1724718200256,0.02484408,63082.0,63081.0,0.15817801]
[1724718200731,0.02484408,63082.0,63081.0,0.16417801]
[1724718200981,0.02484408,63082.0,63081.0,0.17017801]
[1724718201371,0.5716176,63082.0,63081.0,0.014]
[1724718201566,0.60696406,63082.0,63081.0,0.014]
[1724718202100,0.9240107,63082.0,63081.0,0.014824]
[1724718203717,0.6069637,63082.0,63081.0,0.014824]
[1724718203919,0.35351106,63082.0,63081.0,0.014824]
[1724718204205,0.18336708,63082.0,63081.0,0.014824]
[1724718204523,0.50041408,63082.0,63081.0,0.014824]
[1724718205463,0.18336708,63082.0,63081.0,0.014824]
[1724718205657,0.23084063,63082.0,63081.0,0.014824]
[1724718206062,0.18336708,63082.0,63081.0,0.014824]
[1724718206657,0.02484408,63082.0,63081.0,0.014824]
[1724718207049,0.18336708,63082.0,63081.0,0.014824]
[1724718207451,0.18336708,63082.0,63081.0,0.097324]
[1724718208703,0.36451321,63084.0,63081.0,0.097324]
[1724718208704,0.158521,63083.0,63081.0,0.097324]
[1724718209530,0.158521,63083.0,63082.0,0.0637]
[1724718210759,0.158521,63083.0,63082.0,0.0687]
[1724718211731,0.20600478,63083.0,63082.0,0.0687]
[1724718211924,0.20600478,63083.0,63082.0,0.0637]
[1724718212127,0.158521,63083.0,63082.0,0.0667]
[1724718212347,0.158521,63083.0,63082.0,0.0737]
[1724718212547,0.158521,63083.0,63082.0,0.0667]
[1724718212768,0.158521,63083.0,63082.0,0.0637]
[1724718212974,0.158521,63083.0,63082.0,0.0707]
[1724718213239,0.20600751,63083.0,63082.0,0.0707]
[1724718213636,0.20600751,63083.0,63082.0,0.07612549]
[1724718214037,0.158521,63083.0,63082.0,0.07612549]
[1724718214444,0.2060195,63083.0,63082.0,0.07612549]
[1724718215380,0.158521,63083.0,63082.0,0.07612549]
[1724718215824,0.2060195,63083.0,63082.0,0.07612549]
[1724718216793,0.158521,63083.0,63082.0,0.07612549]
[1724718217005,0.158521,63083.0,63082.0,0.01242549]
[1724718217529,0.475563,63083.0,63082.0,0.01242549]
[1724718218663,0.56741076,63083.0,63082.0,0.01242549]
[1724718220353,0.88445276,63083.0,63082.0,0.01242549]
[1724718220552,1.14165462,63083.0,63082.0,0.01242549]
[1724718221095,1.26038486,63083.0,63082.0,0.01242549]
[1724718221298,1.26038486,63083.0,63082.0,0.00842549]
[1724718221703,1.26038486,63083.0,63082.0,0.01042549]
[1724718222043,1.26038486,63083.0,63082.0,0.00742549]
[1724718222244,1.14165462,63083.0,63082.0,0.00742549]
[1724718223318,1.12105462,63083.0,63082.0,0.00742549]
[1724718223518,1.23977963,63083.0,63082.0,0.00742549]
[1724718225069,1.23977963,63083.0,63082.0,0.00824949]
[1724718225445,1.24068603,63083.0,63082.0,0.00824949]
[1724718228624,1.12196102,63083.0,63082.0,0.00824949]
[1724718229082,1.11876543,63083.0,63082.0,0.00824949]
[1724718229503,1.11876543,63083.0,63082.0,0.15444949]
[1724718229504,0.23067627,63083.0,63082.0,0.15444949]
[1724718229788,0.54771827,63083.0,63082.0,0.15444949]
[1724718230049,0.4764694,63083.0,63082.0,0.15444949]
[1724718230574,0.52397039,63083.0,63082.0,0.15444949]
[1724718230816,0.04840739,63083.0,63082.0,0.15444949]
[1724718231313,0.0482166,63083.0,63082.0,0.15444949]
[1724718232015,0.00071561,63083.0,63082.0,0.15444949]
[1724718232249,0.04822234,63083.0,63082.0,0.15444949]
[1724718232517,0.00071561,63083.0,63082.0,0.15444949]
[1724718233029,0.04822783,63083.0,63082.0,0.15444949]
[1724718233431,0.00071561,63083.0,63082.0,0.15444949]
[1724718233652,0.07196448,63083.0,63082.0,0.15444949]
[1724718233860,0.00071561,63083.0,63082.0,0.15444949]
[1724718234649,0.07199557,63083.0,63082.0,0.15444949]
[1724718235535,0.00071561,63083.0,63082.0,0.15444949]
[1724718236150,0.07202718,63083.0,63082.0,0.15444949]
[1724718236544,0.00071561,63083.0,63082.0,0.15444949]
[1724718236969,0.04825818,63083.0,63082.0,0.15444949]
[1724718238609,0.04825686,63083.0,63082.0,0.15444949]
[1724718239981,0.04825686,63083.0,63082.0,0.002824]
[1724718239982,0.32747867,63083.0,63082.0,0.002824]
[1724718240185,0.36797867,63083.0,63082.0,0.002824]
[1724718240389,0.18383936,63083.0,63082.0,0.002824]
[1724718240599,0.56875668,63083.0,63082.0,0.002824]
[1724718241023,0.56875668,63083.0,63082.0,0.000824]
[1724718241228,0.56875668,63083.0,63081.0,0.000824]
[1724718241229,0.0621,63082.0,63081.0,0.00021766]
[1724718241453,0.67939482,63082.0,63081.0,0.00021766]
[1724718242158,0.84662482,63082.0,63081.0,0.00021766]
[1724718242371,0.87147357,63082.0,63081.0,0.00021766]
[1724718242812,0.87247357,63082.0,63081.0,0.00121766]
[1724718244161,0.87247357,63082.0,63081.0,0.00221766]
[1724718244360,0.86010557,63082.0,63081.0,0.00221766]
[1724718244963,1.02034306,63082.0,63081.0,0.00221766]
[1724718245266,0.86010557,63082.0,63081.0,0.00221766]
[1724718246644,0.85048608,63082.0,63081.0,0.00221766]
[1724718247889,0.68507607,63082.0,63081.0,0.00221766]
[1724718249964,0.84225408,63082.0,63081.0,0.00221766]
[1724718251383,0.84177318,63082.0,63081.0,0.00221766]
[1724718251581,0.001,63079.0,63078.0,0.000824]
[1724718251784,0.47384068,63079.0,63078.0,0.000824]
[1724718252128,0.49684068,63079.0,63078.0,0.000824]
[1724718252451,0.63910989,63079.0,63078.0,0.000824]
[1724718252727,0.49684068,63079.0,63078.0,0.001824]
[1724718252879,0.63910758,63079.0,63078.0,0.001824]
[1724718253212,0.63810758,63079.0,63078.0,0.001824]
[1724718253375,0.31666267,63079.0,63078.0,0.001824]
[1724718254016,0.41350663,63079.0,63078.0,0.002824]
[1724718254217,0.31866267,63079.0,63078.0,0.002824]
[1724718254418,0.12055495,63079.0,63078.0,0.002824]
[1724718254712,0.09684434,63079.0,63078.0,0.002824]
[1724718254914,0.002,63079.0,63078.0,0.001824]
[1724718255124,0.09684595,63079.0,63078.0,0.001824]
[1724718255494,0.31666267,63079.0,63078.0,0.001824]
[1724718255776,0.003,63079.0,63078.0,0.001824]
[1724718255929,0.003,63079.0,63078.0,0.002824]
[1724718255930,0.12155495,63079.0,63078.0,0.002824]
[1724718256131,0.32237196,63079.0,63078.0,0.002824]
[1724718256564,0.44092787,63079.0,63078.0,0.002824]
[1724718257392,0.32237196,63079.0,63078.0,0.002824]
[1724718258168,0.32237196,63079.0,63078.0,0.001824]
[1724718258394,0.31937196,63079.0,63078.0,0.000824]
[1724718258613,0.31937196,63079.0,63078.0,0.001824]
[1724718258834,0.32137196,63079.0,63078.0,0.002824]
[1724718261115,1.43108896,63079.0,63078.0,0.002824]
[1724718262556,1.54964487,63079.0,63078.0,0.002824]
[1724718262815,1.59746697,63079.0,63078.0,0.002824]
[1724718262967,1.59746697,63079.0,63063.0,0.0648]
[1724718262968,0.475707,63064.0,63063.0,0.0648]
[1724718263173,0.792895,63060.0,63059.0,0.000824]
[1724718263541,1.459762,63060.0,63059.0,0.000824]
[1724718263971,1.482762,63060.0,63059.0,0.000824]
[1724718264176,1.41163675,63060.0,63059.0,0.000824]
[1724718264914,1.56881476,63060.0,63059.0,0.001824]
[1724718265113,1.61620529,63060.0,63059.0,0.001824]
[1724718265548,1.62120529,63060.0,63059.0,0.001824]
[1724718265716,1.69399753,63060.0,63059.0,0.001824]
[1724718265906,1.97258128,63060.0,63059.0,0.001824]
[1724718266108,1.97258128,63060.0,63059.0,0.002824]
[1724718266109,1.97949344,63060.0,63059.0,0.002824]
[1724718267205,1.57581476,63060.0,63059.0,0.002824]
[1724718268311,1.64683571,63060.0,63059.0,0.002824]
[1724718268431,1.68733571,63060.0,63059.0,0.002824]
[1724718269124,2.01650765,63060.0,63059.0,0.002824]
[1724718269303,2.0403921,63060.0,63059.0,0.002824]
[1724718269504,2.04016861,63060.0,63059.0,0.002824]
[1724718270075,2.0164797,63060.0,63059.0,0.002824]
[1724718270282,1.61631476,63060.0,63059.0,0.002824]
[1724718270679,1.68728978,63060.0,63059.0,0.002824]
[1724718270884,1.62213302,63060.0,63059.0,0.002824]
[1724718271333,1.16437126,63060.0,63059.0,0.002824]
[1724718271555,0.799895,63060.0,63059.0,0.142924]
[1724718276757,0.7997042,63060.0,63059.0,0.142924]
[1724718281660,0.007,63060.0,63059.0,0.142924]
[1724718282607,0.165579,63060.0,63059.0,0.143924]
[1724718282803,0.482737,63060.0,63059.0,0.141924]
[1724718283030,0.475737,63060.0,63059.0,0.140924]
[1724718283211,0.794895,63060.0,63059.0,0.140924]
[1724718284368,0.795895,63060.0,63059.0,0.140924]
[1724718285791,1.113053,63060.0,63059.0,0.140924]
[1724718286682,1.113053,63060.0,63059.0,0.000824]
[1724718287954,1.18413646,63060.0,63059.0,0.000824]
[1724718288169,1.18413646,63060.0,63059.0,0.004124]
[1724718288756,1.113053,63060.0,63059.0,0.084624]
[1724718289688,1.113053,63060.0,63059.0,0.147724]
[1724718290275,0.003,63060.0,63059.0,0.147724]
[1724718290503,0.320158,63060.0,63059.0,0.148724]
[1724718290698,0.478737,63060.0,63059.0,0.147724]
[1724718291568,0.161579,63060.0,63059.0,0.148724]
[1724718291683,0.161579,63060.0,63059.0,0.147724]
[1724718291902,0.161579,63060.0,63059.0,0.148724]
[1724718292133,0.161579,63060.0,63059.0,0.147724]
[1724718292349,0.161579,63060.0,63059.0,0.148724]
[1724718293823,0.161579,63060.0,63059.0,0.147724]
[1724718294015,0.161579,63060.0,63059.0,0.148724]
[1724718294428,0.161579,63060.0,63059.0,0.147724]
[1724718294939,0.161579,63060.0,63059.0,0.148724]
[1724718296310,0.1624854,63060.0,63059.0,0.148724]
[1724718296690,0.1624854,63060.0,63059.0,0.147724]
[1724718296920,0.1624854,63060.0,63059.0,0.148724]
[1724718297329,0.1608996,63060.0,63059.0,0.148724]
[1724718297530,0.0023206,63060.0,63059.0,0.148724]
[1724718297725,0.1608996,63060.0,63059.0,0.147724]
[1724718298403,0.0023206,63060.0,63059.0,0.147724]
[1724718299546,0.0023206,63060.0,63059.0,0.148724]
[1724718299746,0.0023206,63060.0,63059.0,0.147724]
[1724718299955,0.09487096,63067.0,63063.0,0.460643]
[1724718300133,0.52434441,63075.0,63068.0,0.065]
[1724718300305,0.09577736,63078.0,63072.0,0.0785]
[1724718300306,0.0009064,63078.0,63072.0,0.0785]
[1724718300510,0.04743548,63077.0,63074.0,0.0785]
[1724718301027,0.0009064,63078.0,63074.0,0.0785]
[1724718301028,0.04743548,63076.0,63074.0,0.0785]
[1724718302006,0.04743548,63076.0,63074.0,0.0795]
[1724718302326,0.04743548,63076.0,63074.0,0.0785]
[1724718303557,0.164537,63077.0,63074.0,0.0795]
[1724718303558,0.05343548,63077.0,63074.0,0.0795]
[1724718303775,0.05543548,63077.0,63074.0,0.0795]
[1724718304189,0.04743548,63077.0,63074.0,0.0785]
[1724718304405,0.04743548,63077.0,63074.0,0.0815]
[1724718304628,0.04743548,63077.0,63074.0,0.0825]